Cogmind - Beta 9.3 @@@ ROGUE MODE // 2019.12.30 @ 21:29:35 Player: mrbill82 Result: Destroyed by S-10 Pest with Light Assault Rifle Performance ------------- Evolutions (1) 500 Regions Visited (2) 400 Robots Destroyed (31) 155 Value Destroyed (735) 735 Prototype IDs (0) 0 Alien Tech Used (0) 0 Bonus (0) 0 TOTAL SCORE: 1790 Bonus ------- None Cogmind --------- Core Integrity 0/400 Matter 292/300 Energy 100/100 System Corruption 0% Temperature Cool (0) Movement Core (300) Ox5 Location -9/Materials Parts ------- > --- POWER (1) -------- (None) > --- PROPULSION (4) --- (None) > --- UTILITY (2) ------ Large Storage Unit Signal Interpreter > --- WEAPON (2) ------- (None) > --- INVENTORY (10) --- Ion Engine EM Pulse Gun Beam Cannon Beam Cannon Particle Cannon Light Assault Rifle Plasma Cutter Peak State ------------ > --- POWER ------------ Ion Engine > --- PROPULSION ------- Armored Treads Armored Treads Armored Treads Armored Treads > --- UTILITY ---------- Large Storage Unit Signal Interpreter > --- WEAPON ----------- Electrolaser Electrolaser > --- INVENTORY -------- Aluminum Leg Aluminum Leg Field Recycling Unit EM Pulse Gun Beam Cannon Beam Cannon Particle Cannon Light Assault Rifle Plasma Cutter [Rating: 22] Favorites ----------- Power Ion Engine Engine Ion Engine Propulsion Aluminum Leg Treads Improved Treads Leg Aluminum Leg Utility Signal Interpreter Storage Small Storage Unit Processor Signal Interpreter Weapon EM Pulse Gun Energy Gun EM Pulse Gun Ballistic Gun Light Assault Rifle Build | -11 -10 -9 ------- Run | Scr Mat Mat Slots Evolved 2 | . . 2 Power . | . . . Propulsion 2 | . . 2 Utility . | . . . Weapon . | . . . Parts Attached 36 | 7 14 15 Power 5 | 1 2 2 Engine 5 | 1 2 2 Core . | . . . Reactor . | . . . Propulsion 14 | 2 4 8 Treads 6 | . 2 4 Leg 8 | 2 2 4 Wheel . | . . . Hover . | . . . Flight . | . . . Utility 3 | 1 2 . Device . | . . . Storage 2 | 1 1 . Processor 1 | . 1 . Hackware . | . . . Protection . | . . . Artifact . | . . . Weapon 14 | 3 6 5 Energy Gun 9 | 3 3 3 Energy Cannon . | . . . Ballistic Gun 5 | . 3 2 Ballistic Cannon . | . . . Launcher . | . . . Special Weapon . | . . . Impact Weapon . | . . . Slashing Weapon . | . . . Piercing Weapon . | . . . Special Melee Weapon . | . . . Unidentified Prototypes . | . . . Parts Lost 14 | . 5 9 Power 2 | . 1 1 Propulsion 4 | . . 4 Utility . | . . . Weapon 8 | . 4 4 Highest Loss Streak 8 | . 3 8 Average Slot Usage (%) 90 | . 93 80 Engine 11 | . 12 9 Treads 9 | . 9 9 Leg 18 | . 18 19 Storage 13 | . 14 11 Processor 11 | . 12 11 Energy Gun 18 | . 18 17 Ballistic Gun 6 | . 7 2 Naked Turns . | . . . Heaviest Build 29 | 13 24 29 Greatest Support 80 | 20 46 80 Greatest Overweight (x) 5 | . 2 5 Average Overweight (x) . | . . . Largest Inventory Capacity 10 | 6 10 10 Average Capacity 7 | 5 6 10 Most Carried 10 | 2 6 10 Average Carried 5 | 1 5 7 Final Capacity 10 | 6 10 10 Final Carried 7 | 2 6 7 Class Distribution -------------------- 94% | Mutant 5% | Scavenger-Mutant Dominant Class ---------------- Mutant | -10/Materials Mutant | -9/Materials Resources | -11 -10 -9 ----------- Run | Scr Mat Mat Matter Collected 595 | 269 188 138 Remotely . | . . . Salvage Created 935 | . 733 202 Parts 65 | . 53 12 Haulers Intercepted . | . . . Recyclers Shooed 1 | . 1 . Parts Field Recycled . | . . . Retrieved Matter . | . . . Parts Self-Destructed . | . . . Prevented . | . . . Kills | -11 -10 -9 ------- Run | Scr Mat Mat Combat Hostiles Destroyed 24 | . 16 8 Guns 22 | . 15 7 AOE 2 | . 1 1 Classes Destroyed 7 | . 6 1 Worker 1 | . 1 . Builder 3 | . 3 . Recycler 1 | . 1 . Watcher 2 | . 2 . Swarmer 10 | . 6 4 Grunt 12 | . 10 2 Sentry 2 | . . 2 Best Kill Streak 10 | . 10 4 Combat Bots Only 6 | . 6 4 Max Kills in Single Turn 2 | . 2 1 Gunslinging . | . . . Exploded 1 | . 1 1 Melee . | . . . Uniques/NPCs Destroyed . | . . . Combat | -11 -10 -9 -------- Run | Scr Mat Mat Damage Taken 1980 | . 832 1148 Core 563 | . 158 405 Absorbed by Shields . | . . . Core Remaining (%) 68 | 100 36 . Volleys Fired 94 | . 64 30 Largest 2 | . 2 2 Hottest 126 | . 80 126 Shots Fired 139 | . 96 43 Gun 139 | . 96 43 Cannon . | . . . Launcher . | . . . Special . | . . . Kinetic 35 | . 28 7 Thermal 47 | . 11 36 Explosive . | . . . Electromagnetic 57 | . 57 . Robot Hit Streak 7 | . 7 5 Robot Miss Streak 3 | . 3 2 Penetration Max . | . . . Secondary Targets 1 | . 1 . Max Gunslinging Chain 1 | . 1 . Shots Hit Robots 88 | . 60 28 Core Hits 39 | . 30 9 Critical Hits . | . . . Critical Kills . | . . . Critical Parts Destroyed . | . . . Melee Attacks . | . . . Impact . | . . . Slashing . | . . . Piercing . | . . . Sneak Attacks . | . . . Combat Hostiles . | . . . Follow-up Attacks . | . . . Damage Inflicted 1650 | . 1068 582 Guns 1205 | . 759 446 Cannons . | . . . Explosions 445 | . 309 136 Melee . | . . . Ramming . | . . . Kinetic 234 | . 196 38 Thermal 649 | . 241 408 Explosive 331 | . 195 136 Electromagnetic 436 | . 436 . Impact . | . . . Slashing . | . . . Piercing . | . . . Highest Corruption . | . . . Average Corruption . | . . . Corruption Purged . | . . . Overload Shots . | . . . Overflow Damage 40 | . 1 39 Projectiles . | . . . Explosions 40 | . 1 39 Melee . | . . . Knockbacks . | . . . Impact . | . . . Kinetic . | . . . Secondary . | . . . Self-Inflicted Damage 164 | . 97 67 Shots 3 | . 2 1 Rammed . | . . . Targets Rammed . | . . . Kicked . | . . . Crushed . | . . . Highest Temperature 405 | . 204 405 Average Temperature 125 | . 72 197 Received Heat Transfer 513 | . 294 219 Effects 3 | . . 3 Shutdowns 1 | . . 1 Matter Decay 1 | . . 1 Short Circuit 1 | . . 1 Siege Activations . | . . . Robots Corrupted . | . . . Combat Hostiles . | . . . Parts Fried 3 | . 3 . Impact Corruptions . | . . . Robots Melted . | . . . Combat Hostiles . | . . . Parts Melted 5 | . . 5 Heat Transferred 1363 | . 475 888 Parts Sabotaged . | . . . Parts Stolen . | . . . Parts Stripped . | . . . Power Chain Reactions 2 | . 2 . Missiles Intercepted . | . . . Alert | -11 -10 -9 ------- Run | Scr Mat Mat Peak Influence 311 | . 258 311 Average Influence 126 | . 121 169 Maximum Alert Level 1 | . 1 1 Low Security (%) 78 | 100 77 77 Level 1 21 | . 22 22 Level 2 . | . . . Level 3 . | . . . Level 4 . | . . . Level 5 . | . . . High Security . | . . . Max Security . | . . . Squads Dispatched 6 | . 3 3 Investigation 4 | . 3 1 Extermination . | . . . Reinforcement 2 | . . 2 Assault . | . . . Garrison . | . . . Intercept . | . . . Construction Impeded . | . . . Haulers Reinforced . | . . . Stealth | -11 -10 -9 --------- Run | Scr Mat Mat Distress Signals 3 | . 3 . Communications Jammed . | . . . Distress Signals . | . . . Times Spotted 38 | . 21 17 Peak Tracking Total 6 | . 5 6 Tactical Retreats 1 | . . 1 Traps | -11 -10 -9 ------- Run | Scr Mat Mat Traps Triggered 2 | . 2 . Indirectly . | . . . Trap Hack Attempts . | . . . Triggered . | . . . Disarmed 2 | . 2 . Reprogrammed . | . . . Reused . | . . . Traps Extracted . | . . . Installed . | . . . Triggered . | . . . Machines | -11 -10 -9 ---------- Run | Scr Mat Mat Machines Disabled 7 | . 5 2 Max in Single Turn 2 | . 2 2 Machines Sabotaged . | . . . Garrisons Compromised . | . . . Overloaded Fab Kills . | . . . Fab Network Shutdowns . | . . . Hacking | -11 -10 -9 --------- Run | Scr Mat Mat Machines Accessed 7 | . 5 2 Terminals 6 | . 5 1 Fabricators . | . . . Repair Stations . | . . . Recycling Units 1 | . . 1 Scanalyzers . | . . . Garrison Access . | . . . Total Hacks 20 | . 14 6 Successful 16 | . 12 4 Failed 4 | . 2 2 Catastrophic . | . . . Database Lockouts . | . . . Manual . | . . . Terminals 17 | . 14 3 Fabricators . | . . . Repair Stations . | . . . Recycling Units 3 | . . 3 Scanalyzers . | . . . Garrison Access . | . . . Terminal Hacks 14 | . 12 2 Record 6 | . 5 1 Robot Analysis 1 | . 1 . Alert Level 2 | . 2 . Disarm Traps 2 | . 2 . Registered Components 1 | . 1 . Zone Layout 2 | . 1 1 Fabricator Hacks . | . . . Repair Station Hacks . | . . . Recycling Unit Hacks 2 | . . 2 Recycle Component 1 | . . 1 Report Inventory 1 | . . 1 Scanalyzer . | . . . Garrison Access Hacks . | . . . Unauthorized Hacks . | . . . Terminals . | . . . Fabricators . | . . . Repair Stations . | . . . Recycling Units . | . . . Scanalyzers . | . . . Garrison Access . | . . . Data Cores Recovered . | . . . Used . | . . . Hacking Detections 7 | . 5 2 Full Trace Events 3 | . 2 1 Feedback Events . | . . . Feedback Blocked . | . . . Robot Schematics Acquired . | . . . Robots Built . | . . . Matter . | . . . Time . | . . . Total Robot Build Rating . | . . . Part Schematics Acquired . | . . . Parts Built . | . . . Matter . | . . . Time . | . . . Total Part Build Rating . | . . . Parts Repaired . | . . . Time . | . . . Parts Recycled 1 | . . 1 Recycled Matter . | . . . Retrieved Matter . | . . . Retrieved Components . | . . . Parts Scanalyzed . | . . . Part Schematics Acquired . | . . . Parts Damaged . | . . . Bothacking | -11 -10 -9 ------------ Run | Scr Mat Mat Used RIF Installer . | . . . Robots Hacked . | . . . Non-combat . | . . . Combat . | . . . Robot Hacks Applied . | . . . Relay Couplers Released . | . . . Robots Rewired . | . . . Allies Hacked . | . . . Hacks Repelled . | . . . Allies | -11 -10 -9 -------- Run | Scr Mat Mat Total Allies . | . . . Largest Group . | . . . Highest-Rated Group . | . . . Highest-Rated Ally . | . . . Total Orders . | . . . Ally Attacks . | . . . Total Damage . | . . . Kills . | . . . Allies Corrupted . | . . . Allies Melted . | . . . Intel | -11 -10 -9 ------- Run | Scr Mat Mat Robot Analysis Total 1 | . 1 . Derelict Logs Recovered . | . . . Drone Launches . | . . . Drone Recoveries . | . . . Exploration | -11 -10 -9 ------------- Run | Scr Mat Mat Turns Passed 1397 | 62 1024 311 Spaces Moved 809 | 48 616 145 Core 18 | 11 1 6 Treads 218 | . 190 28 Legs 573 | 37 425 111 Wheels . | . . . Hover . | . . . Flight . | . . . Fastest Speed 50 | 50 120 120 Average Speed 134 | 103 134 146 Slowest Speed 300 | 120 160 300 Overloaded Moves . | . . . Propulsion Burnouts . | . . . Robots Hopped . | . . . Cave-ins Triggered . | . . . Exploration Rate (%) 29 | 3 71 14 Regions Visited 2 Branch Regions . Pre-discovered Areas . | . . . Known Exits Taken 1 | . 1 . Unknown Exits Taken 1 | 1 . . Scrap Searched . | . . . Spaces Dug . | . . . Terrain Destroyed 63 | . 34 29 Melee . | . . . Projectile . | . . . AOE 63 | . 34 29 Actions | -11 -10 -9 --------- Run | Scr Mat Mat Total 985 | 57 723 205 Wait 7 | . 7 . Move 807 | 47 615 145 Hop . | . . . Pick Up 16 | 2 11 3 Fast Attach 22 | 6 8 8 Attach 9 | 1 3 5 Detach 6 | 1 . 5 Swap 5 | . 3 2 Drop 19 | . 12 7 Fire 94 | . 64 30 Melee . | . . . Ram . | . . . Kick . | . . . Crush . | . . . Escape Stasis . | . . . Rewire . | . . . Trap . | . . . Miscellaneous . | . . . Route ------- -11/Scrapyard -10/Materials (discovered 3 exits: *Mat / *Min x2) -9/Materials History --------- Turn | Location | Event 5 | -11/Scrapyard | Discovered new exit (range 15) 63 | -11/Scrapyard | Entered Materials 311 | -10/Materials | Build established: Mutant 573 | -10/Materials | Lost 3 parts (1p2w) 739 | -10/Materials | Discovered new exit (range 8) 739 | -10/Materials | Discovered new exit (range 14) 832 | -10/Materials | Identified exit to Materials 863 | -10/Materials | Identified exit to Mines 930 | -10/Materials | Discovered exit to Mines (range 16) 1000 | -10/Materials | Core integrity fell below 50% 1087 | -10/Materials | Entered another Materials area 1087 | -9/Materials | Evolved 2 slots: Propulsion x2 1382 | -9/Materials | Core integrity fell below 50% 1396 | -9/Materials | Core integrity fell below 20% 1398 | -9/Materials | Destroyed by S-10 Pest with Light Assault Rifle Last Messages --------------- U-05 Engineer builds a Wall. Acquired Lgt. Assault Rifle. Imp. Ion Engine destroyed. Aluminum Leg destroyed. Y-45 Defender destroyed. U-05 Engineer builds a Wall. Lgt. Assault Rifle destroyed. U-05 Engineer builds a Wall. The unstable cave ceiling collapses. Acquired Lgt. Assault Rifle. K-01 Serf collects debris. K-01 Serf cleans the Terminal. U-05 Engineer builds a Door. K-01 Serf cleans the Terminal. Lgt. Assault Rifle destroyed. U-05 Engineer lays Concrete. The unstable cave ceiling collapses. U-05 Engineer lays Concrete. K-01 Serf cleans the Terminal. U-05 Engineer builds a Wall. Map ----- +----------------------------------------------------+ | | | | | | | ???????????????????????????????????????????????? | | ???????????????????????????????????????????????? | | ???????????????????????????????????????????????? | | ???????????????????????????????????????????????? | | ???????????????????????????????????????????????? | | ???????????????????????????????????????????????? | | ???????????????????????????????????????????????? | | ??????????????????????????#############+???????? | | ??????????????????????????# # ???????? | | ??????????????????????????# "T" # ???????? | | ?????????????????????????## """ # ???????? | | ?????????????????????????# # ???????? | | ??????????????????????############+## ???????? | | ??????????????????##### #% # # ???????? | | ??????????????????# # #??????? | | ??????????????????# """ # T #??????? | | ??????????????????# ""S t s # #??????? | | ??????????????????# "" " s u #??????? | | ??????????????????# %Y[# ""?????? | | ??????????????????#+### s """ ???????? | | ??????????????????# ## s """ ???????? | | ????????########### ## """ ???????? | | ????????# ## ## T@ ??????? | | ????????# """ ## ## kw##### ??????? | | ????????# """ ## ### ###############???????? | | ????????# """ ## #?# # """"" #???????????? | | ????????# ## ### + """"" #???????????? | | ????????# """ + # """"" #???????????? | | ????????# """ # # #???????????? | | ????????# """ # ####### #???????????? | | ????????# # #?????# #???????????? | | ?????????#########+###???# #???????????? | | ????????? ## #???# #???????????? | | ?????????" ## #???###########???????????? | | ?????????" ## #?????########????????????? | | ?????????" ## ! #?????# #????????????? | | ?????????" ## #?????# #????????????? | | ?????????" ## #?????# #????????????? | | ??????????????# #?????# "Y" #????????????? | | ??????????????# #?????# """ #????????????? | | ??????????????# ####### #????????????? | | ???????##+########+### ###+###########?????? | | ???????# #?????? | | ???????# ==! #?????? | | ?? !== [% #?????? | | ????##### ##### #### ######## #?????? | | ??????????????# #?## #??????#! !#?????? | +----------------------------------------------------+ Best States ------------- Heat Dissipation 28 Energy Generation 12 Energy Capacity 265 Matter Stores 300 Matter Capacity 300 Sight Range 16 Terrain Scan Density 10 Evasion (%) 40 Recoil Reduction 4 Item Schematics ----------------- None Robot Schematics ------------------ None Fabricated ------------ Nothing Alien Tech Used ----------------- None Achievements -------------- None Challenges ------------ None Game ------ Seed HelicalNeutralizingShifter Manual? 0 Play Time 00:24:21 Cumulative 3.6 hours Start 2019.12.30 @ 21:08:47 End 2019.12.30 @ 21:29:35 Sessions 1 Manual Loads 0 Difficulty Rogue Special Mode None Game No. 5 Rogue 5 Adventurer 0 Explorer 0 Win Type - Total 0 Types 0/0/0/0/0/0/0 Lore% 11 Gallery% 6 Achievement% 6 Wizard Run 0 Options --------- ASCII 0 Keyboard 1 Movement Numpad Keybinds 0 Fullscreen 1 Font 18/X11 Map View 76x50 Tactical HUD 0 Map Filters NONE Filters NONE Steam 1 RUN: e5d2c979-5bb4-4a2b-b265-5952b425baf4